[Event "Late-Titled-Tuesday-Blitz-May-07-2024"]
[Site "Chess.com"]
[Date "2024.05.07"]
[Round "10"]
[White "KaydenTroffChess"]
[Black "Meri-Arabidze"]
[Result "1-0"]
[WhiteElo "2875"]
[BlackElo "2724"]
[TimeControl "180+1"]
[EndTime "15:56:13 PDT"]
[Termination "KaydenTroffChess won on time"]

1. d4 {[%clk 0:03:00.9]} 1... Nf6 {[%clk 0:02:59.9]} 2. Nf3 {[%clk 0:03:01.8]}
2... e6 {[%clk 0:03:00.2]} 3. Bf4 {[%clk 0:03:02.4]} 3... d5 {[%clk 0:02:58.4]}
4. e3 {[%clk 0:03:03]} 4... Bd6 {[%clk 0:02:57.6]} 5. Ne5 {[%clk 0:03:03.5]}
5... O-O {[%clk 0:02:54.5]} 6. Nd2 {[%clk 0:03:03]} 6... c5 {[%clk 0:02:53.9]}
7. c3 {[%clk 0:03:03.7]} 7... Nc6 {[%clk 0:02:52.5]} 8. Bg3 {[%clk 0:03:03.9]}
8... Qc7 {[%clk 0:02:47.4]} 9. f4 {[%clk 0:03:03.9]} 9... Ne7 {[%clk 0:02:42.1]}
10. Bh4 {[%clk 0:03:04]} 10... Ne4 {[%clk 0:02:33.9]} 11. Bd3 {[%clk 0:02:57.2]}
11... Nxd2 {[%clk 0:01:55.8]} 12. Kxd2 {[%clk 0:02:58.1]} 12... f6 {[%clk
0:01:55.3]} 13. Bg3 {[%clk 0:02:14.6]} 13... Nf5 {[%clk 0:01:52.9]} 14. Nf3
{[%clk 0:02:05.5]} 14... cxd4 {[%clk 0:01:49.4]} 15. Nxd4 {[%clk 0:02:05.7]}
15... Nxd4 {[%clk 0:01:41.7]} 16. cxd4 {[%clk 0:02:04.8]} 16... Bd7 {[%clk
0:01:29.2]} 17. Qb3 {[%clk 0:02:01.3]} 17... Bc6 {[%clk 0:01:21.3]} 18. Ke2
{[%clk 0:01:57.4]} 18... Kh8 {[%clk 0:01:20.4]} 19. Rhf1 {[%clk 0:01:51]} 19...
e5 {[%clk 0:01:13.7]} 20. fxe5 {[%clk 0:01:46.1]} 20... fxe5 {[%clk 0:01:14.6]}
21. dxe5 {[%clk 0:01:45.2]} 21... Bxe5 {[%clk 0:01:14.2]} 22. Qb4 {[%clk
0:01:44.1]} 22... Rfe8 {[%clk 0:00:45.3]} 23. Qh4 {[%clk 0:01:43.1]} 23... h6
{[%clk 0:00:45.6]} 24. Qh5 {[%clk 0:01:33.2]} 24... Bb5 {[%clk 0:00:26.2]} 25.
Bxb5 {[%clk 0:01:00.3]} 25... Qc2+ {[%clk 0:00:25.9]} 26. Kf3 {[%clk 0:00:59.3]}
26... Qe4+ {[%clk 0:00:22.7]} 27. Kf2 {[%clk 0:00:58]} 27... Bd4 {[%clk
0:00:02.4]} 28. Kg1 {[%clk 0:00:55.8]} 28... Bxe3+ {[%clk 0:00:01.9]} 29. Kh1
{[%clk 0:00:55.9]} 29... d4 {[%clk 0:00:02.4]} 30. Bxe8 {[%clk 0:00:55.3]} 30...
Rxe8 {[%clk 0:00:01.5]} 31. Qf5 {[%clk 0:00:54]} 31... Qxf5 {[%clk 0:00:01.5]}
32. Rxf5 {[%clk 0:00:54.9]} 32... d3 {[%clk 0:00:02.2]} 33. Rd1 {[%clk
0:00:54.8]} 33... d2 {[%clk 0:00:02.6]} 34. Re5 {[%clk 0:00:38.6]} 34... Rc8
{[%clk 0:00:02.7]} 35. Rxe3 {[%clk 0:00:38.9]} 35... Rc1 {[%clk 0:00:02.7]} 36.
Ree1 {[%clk 0:00:39.6]} 36... dxe1=Q+ {[%clk 0:00:01.8]} 37. Rxe1 {[%clk
0:00:40.5]} 37... Rc2 {[%clk 0:00:02.3]} 38. Be5 {[%clk 0:00:41.1]} 1-0

[Event "Late-Titled-Tuesday-Blitz-May-07-2024"]
[Site "Chess.com"]
[Date "2024.05.07"]
[Round "10"]
[White "Indefatigable11"]
[Black "dolynachess"]
[Result "0-1"]
[WhiteElo "2402"]
[BlackElo "2524"]
[TimeControl "180+1"]
[EndTime "15:56:15 PDT"]
[Termination "dolynachess won by checkmate"]

1. Nf3 {[%clk 0:03:00.9]} 1... c5 {[%clk 0:02:57.3]} 2. g3 {[%clk 0:03:01.8]}
2... Nf6 {[%clk 0:02:56.6]} 3. Bg2 {[%clk 0:03:01.3]} 3... g6 {[%clk 0:02:57.5]}
4. c4 {[%clk 0:03:00.8]} 4... Bg7 {[%clk 0:02:58.4]} 5. O-O {[%clk 0:03:00.4]}
5... O-O {[%clk 0:02:59.3]} 6. Nc3 {[%clk 0:03:00.1]} 6... Nc6 {[%clk
0:02:59.2]} 7. d3 {[%clk 0:03:01]} 7... a6 {[%clk 0:02:59.1]} 8. a3 {[%clk
0:02:59.5]} 8... Rb8 {[%clk 0:02:58.5]} 9. Rb1 {[%clk 0:03:00]} 9... b5 {[%clk
0:02:59]} 10. e4 {[%clk 0:02:53.7]} 10... bxc4 {[%clk 0:02:49.4]} 11. dxc4
{[%clk 0:02:54.6]} 11... d6 {[%clk 0:02:49.7]} 12. Be3 {[%clk 0:02:48]} 12...
Bg4 {[%clk 0:02:28.9]} 13. Qd2 {[%clk 0:02:44.4]} 13... Nd7 {[%clk 0:02:19.3]}
14. Nd5 {[%clk 0:02:39.1]} 14... Bxf3 {[%clk 0:02:07.9]} 15. Bxf3 {[%clk
0:02:38.1]} 15... e6 {[%clk 0:02:01.4]} 16. Nc3 {[%clk 0:02:37.1]} 16... Nde5
{[%clk 0:02:01]} 17. Be2 {[%clk 0:02:36.8]} 17... Nd4 {[%clk 0:02:00.9]} 18. f4
{[%clk 0:02:34.8]} 18... Nec6 {[%clk 0:01:54.5]} 19. Bd3 {[%clk 0:02:22]} 19...
Rb3 {[%clk 0:01:48.2]} 20. Rf2 {[%clk 0:02:12.2]} 20... Qb6 {[%clk 0:01:46.1]}
21. Nd1 {[%clk 0:02:04]} 21... Rb8 {[%clk 0:01:41.5]} 22. Bc2 {[%clk 0:02:01.3]}
22... Nxc2 {[%clk 0:01:22.2]} 23. Qxc2 {[%clk 0:02:02.2]} 23... Nd4 {[%clk
0:01:17.8]} 24. Qd2 {[%clk 0:02:02.5]} 24... a5 {[%clk 0:01:15.6]} 25. g4 {[%clk
0:01:54.7]} 25... Rxa3 {[%clk 0:01:14.1]} 26. f5 {[%clk 0:01:50.4]} 26... Be5
{[%clk 0:01:12.4]} 27. f6 {[%clk 0:01:43.7]} 27... Qd8 {[%clk 0:00:56]} 28. g5
{[%clk 0:01:38.4]} 28... Rab3 {[%clk 0:00:49.8]} 29. h4 {[%clk 0:01:34.3]} 29...
h5 {[%clk 0:00:46.4]} 30. gxh6 {[%clk 0:01:19.1]} 30... Bxf6 {[%clk 0:00:44.6]}
31. h5 {[%clk 0:01:18.9]} 31... gxh5 {[%clk 0:00:31.4]} 32. Rg2+ {[%clk
0:01:16.3]} 32... Kh7 {[%clk 0:00:25.9]} 33. Qf2 {[%clk 0:01:16.2]} 33... Qe7
{[%clk 0:00:20.1]} 34. Qg3 {[%clk 0:01:06.1]} 34... Be5 {[%clk 0:00:16.5]} 35.
Qh3 {[%clk 0:01:03.9]} 35... Rg8 {[%clk 0:00:11.9]} 36. Rxg8 {[%clk 0:01:01.6]}
36... Kxg8 {[%clk 0:00:12.8]} 37. Qxh5 {[%clk 0:01:01.4]} 37... Qf6 {[%clk
0:00:11.8]} 38. Nf2 {[%clk 0:00:53.3]} 38... Rxe3 {[%clk 0:00:10.6]} 39. Ng4
{[%clk 0:00:40.5]} 39... Rg3+ {[%clk 0:00:10.4]} 40. Kh2 {[%clk 0:00:36.6]}
40... Rxg4+ {[%clk 0:00:08.6]} 41. Kh1 {[%clk 0:00:36.8]} 41... Qf3# {[%clk
0:00:07.9]} 0-1

[Event "Late-Titled-Tuesday-Blitz-May-07-2024"]
[Site "Chess.com"]
[Date "2024.05.07"]
[Round "10"]
[White "Denmark2015"]
[Black "Supelyel"]
[Result "1-0"]
[WhiteElo "2583"]
[BlackElo "2425"]
[TimeControl "180+1"]
[EndTime "15:56:21 PDT"]
[Termination "Denmark2015 won by checkmate"]

1. d4 {[%clk 0:03:00.9]} 1... d6 {[%clk 0:02:31.4]} 2. Nf3 {[%clk 0:03:00.6]}
2... Nf6 {[%clk 0:02:31.2]} 3. c4 {[%clk 0:03:00.7]} 3... Nbd7 {[%clk
0:02:32.1]} 4. Nc3 {[%clk 0:02:59.9]} 4... e5 {[%clk 0:02:32.8]} 5. d5 {[%clk
0:03:00]} 5... Be7 {[%clk 0:02:32.9]} 6. e4 {[%clk 0:03:00]} 6... O-O {[%clk
0:02:33.4]} 7. Be2 {[%clk 0:02:57.9]} 7... Nc5 {[%clk 0:02:32.5]} 8. Qc2 {[%clk
0:02:55.3]} 8... a5 {[%clk 0:02:30.9]} 9. Be3 {[%clk 0:02:53.6]} 9... Na6 {[%clk
0:02:26.3]} 10. Nd2 {[%clk 0:02:52.2]} 10... h6 {[%clk 0:02:23.9]} 11. h3 {[%clk
0:02:46]} 11... Nh7 {[%clk 0:02:23.9]} 12. Nf3 {[%clk 0:02:38.9]} 12... Bg5
{[%clk 0:02:22.1]} 13. Nxg5 {[%clk 0:02:35.3]} 13... Nxg5 {[%clk 0:02:22.3]} 14.
h4 {[%clk 0:02:29.7]} 14... Nh7 {[%clk 0:02:20.9]} 15. g4 {[%clk 0:02:27.2]}
15... Re8 {[%clk 0:01:37.8]} 16. O-O-O {[%clk 0:02:25.2]} 16... f6 {[%clk
0:00:45.4]} 17. Rdg1 {[%clk 0:02:22]} 17... Bd7 {[%clk 0:00:44.7]} 18. g5 {[%clk
0:02:19]} 18... fxg5 {[%clk 0:00:42.5]} 19. hxg5 {[%clk 0:02:19.2]} 19... Nxg5
{[%clk 0:00:42.5]} 20. Bxg5 {[%clk 0:02:17.8]} 20... hxg5 {[%clk 0:00:42.8]} 21.
Qd1 {[%clk 0:02:12.1]} 21... Qf6 {[%clk 0:00:41.8]} 22. Rg2 {[%clk 0:02:06.1]}
22... Nc5 {[%clk 0:00:37]} 23. Kb1 {[%clk 0:01:57.3]} 23... Qf4 {[%clk
0:00:29.3]} 24. Rgh2 {[%clk 0:01:41.2]} 24... Kf7 {[%clk 0:00:20.5]} 25. Rh7
{[%clk 0:01:28.9]} 25... Kf6 {[%clk 0:00:14.7]} 26. f3 {[%clk 0:01:17.5]} 26...
Rg8 {[%clk 0:00:12.6]} 27. Qg1 {[%clk 0:01:14.6]} 27... Raf8 {[%clk 0:00:12.2]}
28. Kc2 {[%clk 0:01:09.6]} 28... b6 {[%clk 0:00:12.7]} 29. R1h5 {[%clk
0:01:08.7]} 29... Be8 {[%clk 0:00:12.6]} 30. Rh3 {[%clk 0:01:05.3]} 30... Bg6
{[%clk 0:00:12.6]} 31. Qh1 {[%clk 0:00:43.7]} 31... Bxh7 {[%clk 0:00:12.3]} 32.
Rxh7 {[%clk 0:00:44.1]} 32... Qg3 {[%clk 0:00:12.7]} 33. Nd1 {[%clk 0:00:39.7]}
33... g6 {[%clk 0:00:10.5]} 34. Ne3 {[%clk 0:00:39.2]} 34... Rf7 {[%clk
0:00:07.2]} 35. Ng4+ {[%clk 0:00:36.6]} 35... Ke7 {[%clk 0:00:07.3]} 36. Rxf7+
{[%clk 0:00:33.7]} 36... Kxf7 {[%clk 0:00:07.7]} 37. Qh7+ {[%clk 0:00:32.1]}
37... Kf8 {[%clk 0:00:04.8]} 38. Nh6 {[%clk 0:00:29.6]} 38... Qe1 {[%clk
0:00:00.9]} 39. Qf7# {[%clk 0:00:29]} 1-0

[Event "Late-Titled-Tuesday-Blitz-May-07-2024"]
[Site "Chess.com"]
[Date "2024.05.07"]
[Round "10"]
[White "APOKALIPSA13"]
[Black "ab-lsv"]
[Result "1-0"]
[WhiteElo "2204"]
[BlackElo "2358"]
[TimeControl "180+1"]
[EndTime "15:56:21 PDT"]
[Termination "APOKALIPSA13 won by resignation"]

1. e4 {[%clk 0:03:00]} 1... c6 {[%clk 0:02:59.9]} 2. d4 {[%clk 0:03:00]} 2... d5
{[%clk 0:03:00.8]} 3. exd5 {[%clk 0:03:00.5]} 3... cxd5 {[%clk 0:03:01.7]} 4. c4
{[%clk 0:03:01.4]} 4... Nf6 {[%clk 0:03:01.5]} 5. Nc3 {[%clk 0:03:02.3]} 5...
Nc6 {[%clk 0:03:02]} 6. Nf3 {[%clk 0:03:02.6]} 6... a6 {[%clk 0:03:01.4]} 7.
cxd5 {[%clk 0:02:58.2]} 7... Nxd5 {[%clk 0:03:02.3]} 8. Qb3 {[%clk 0:02:58.2]}
8... Be6 {[%clk 0:03:02.6]} 9. Ng5 {[%clk 0:02:27]} 9... Nxd4 {[%clk 0:02:46.7]}
10. Qa4+ {[%clk 0:02:25.7]} 10... Nc6 {[%clk 0:02:46]} 11. Nxe6 {[%clk
0:02:21.4]} 11... fxe6 {[%clk 0:02:46.9]} 12. Qg4 {[%clk 0:02:11.1]} 12... Qd6
{[%clk 0:02:43]} 13. Ne4 {[%clk 0:02:04.5]} 13... Qe5 {[%clk 0:02:33.1]} 14. Bd3
{[%clk 0:02:03.8]} 14... Ncb4 {[%clk 0:02:10.9]} 15. Bb1 {[%clk 0:01:59.2]}
15... h5 {[%clk 0:02:08.1]} 16. Qg6+ {[%clk 0:01:56.3]} 16... Kd7 {[%clk
0:02:07.4]} 17. O-O {[%clk 0:01:54.1]} 17... h4 {[%clk 0:01:52.9]} 18. a3 {[%clk
0:01:46.6]} 18... Nc6 {[%clk 0:01:51.9]} 19. Nc5+ {[%clk 0:01:37.2]} 19... Kd6
{[%clk 0:01:42.7]} 20. b4 {[%clk 0:01:06.9]} 20... b6 {[%clk 0:01:25.9]} 21.
Ne4+ {[%clk 0:01:04.2]} 21... Kc7 {[%clk 0:01:25]} 22. Ra2 {[%clk 0:01:02.1]}
22... Rd8 {[%clk 0:01:20.5]} 23. Rc2 {[%clk 0:00:57.3]} 23... Kb7 {[%clk
0:01:20.1]} 24. Rxc6 {[%clk 0:00:42.1]} 24... Kxc6 {[%clk 0:01:18.3]} 25. f4
{[%clk 0:00:34.7]} 25... Qd4+ {[%clk 0:01:14.1]} 26. Kh1 {[%clk 0:00:25.6]}
26... Nf6 {[%clk 0:01:13.4]} 27. Nf2 {[%clk 0:00:17]} 27... Kb7 {[%clk 0:01:12]}
28. Qc2 {[%clk 0:00:12.7]} 28... Rh5 {[%clk 0:01:03.9]} 29. h3 {[%clk
0:00:11.8]} 29... Rhd5 {[%clk 0:01:03.4]} 30. Qe2 {[%clk 0:00:10.2]} 30... R5d6
{[%clk 0:01:00]} 31. Be3 {[%clk 0:00:09.8]} 31... Qc3 {[%clk 0:00:51]} 32. Rc1
{[%clk 0:00:06.6]} 32... Qxa3 {[%clk 0:00:44.2]} 33. Qf3+ {[%clk 0:00:06.4]}
33... Ka7 {[%clk 0:00:38.7]} 34. Rc7+ {[%clk 0:00:05.4]} 1-0

[Event "Late-Titled-Tuesday-Blitz-May-07-2024"]
[Site "Chess.com"]
[Date "2024.05.07"]
[Round "10"]
[White "szachmistrz2500"]
[Black "karinachess1"]
[Result "0-1"]
[WhiteElo "2467"]
[BlackElo "2597"]
[TimeControl "180+1"]
[EndTime "15:56:27 PDT"]
[Termination "karinachess1 won by resignation"]

1. d4 {[%clk 0:03:00.9]} 1... Nf6 {[%clk 0:03:00.1]} 2. c4 {[%clk 0:02:59.9]}
2... e6 {[%clk 0:03:00.7]} 3. Nf3 {[%clk 0:02:59.7]} 3... d5 {[%clk 0:03:01.2]}
4. g3 {[%clk 0:02:58]} 4... dxc4 {[%clk 0:03:01.7]} 5. Bg2 {[%clk 0:02:58.1]}
5... Nc6 {[%clk 0:03:02.2]} 6. O-O {[%clk 0:02:57.6]} 6... Rb8 {[%clk 0:03:02]}
7. a4 {[%clk 0:02:55.5]} 7... a6 {[%clk 0:02:58.1]} 8. Nc3 {[%clk 0:02:37]} 8...
Bb4 {[%clk 0:02:53.5]} 9. Bg5 {[%clk 0:02:32]} 9... h6 {[%clk 0:02:52]} 10. Bf4
{[%clk 0:02:32.1]} 10... Nd5 {[%clk 0:02:43]} 11. Bd2 {[%clk 0:02:31.8]} 11...
Bxc3 {[%clk 0:02:34.3]} 12. bxc3 {[%clk 0:02:30.7]} 12... b5 {[%clk 0:02:31.7]}
13. e4 {[%clk 0:02:28.8]} 13... Nf6 {[%clk 0:02:31.9]} 14. axb5 {[%clk 0:02:29]}
14... axb5 {[%clk 0:02:32.1]} 15. Qe2 {[%clk 0:02:25.8]} 15... O-O {[%clk
0:02:30.7]} 16. Rfb1 {[%clk 0:02:21.4]} 16... Bd7 {[%clk 0:02:28.8]} 17. Ne1
{[%clk 0:02:20]} 17... e5 {[%clk 0:02:23.7]} 18. d5 {[%clk 0:02:17]} 18... Ne7
{[%clk 0:02:20.5]} 19. Nc2 {[%clk 0:02:12.5]} 19... Re8 {[%clk 0:02:05.1]} 20.
Nb4 {[%clk 0:01:54.3]} 20... Nc8 {[%clk 0:02:03.6]} 21. Na6 {[%clk 0:01:51.2]}
21... Ra8 {[%clk 0:01:59.5]} 22. Nc5 {[%clk 0:01:46]} 22... Nd6 {[%clk
0:01:52.6]} 23. Qf3 {[%clk 0:01:27.3]} 23... Bg4 {[%clk 0:01:44.8]} 24. Qe3
{[%clk 0:01:26.3]} 24... Qc8 {[%clk 0:01:40.7]} 25. Qe1 {[%clk 0:01:16.6]} 25...
c6 {[%clk 0:01:37.2]} 26. Rxa8 {[%clk 0:01:03.5]} 26... Qxa8 {[%clk 0:01:36.2]}
27. Ra1 {[%clk 0:01:03.2]} 27... Qc8 {[%clk 0:01:32.8]} 28. Be3 {[%clk
0:00:54.5]} 28... cxd5 {[%clk 0:01:12.9]} 29. exd5 {[%clk 0:00:54.6]} 29... Bh3
{[%clk 0:01:13.1]} 30. Ra6 {[%clk 0:00:46]} 30... Bxg2 {[%clk 0:01:11.1]} 31.
Kxg2 {[%clk 0:00:46.3]} 31... Nde4 {[%clk 0:01:10.5]} 32. Nxe4 {[%clk
0:00:41.8]} 32... Qxa6 {[%clk 0:01:09.1]} 33. Nxf6+ {[%clk 0:00:31.3]} 33...
Qxf6 {[%clk 0:01:08.9]} 34. Bc5 {[%clk 0:00:30.2]} 34... e4 {[%clk 0:01:02.1]}
35. Qe3 {[%clk 0:00:29.8]} 35... Qf5 {[%clk 0:00:53.5]} 36. d6 {[%clk
0:00:28.9]} 36... Rd8 {[%clk 0:00:43.4]} 37. Bb4 {[%clk 0:00:28.6]} 37... Rd7
{[%clk 0:00:37.3]} 38. Bc5 {[%clk 0:00:28.1]} 38... h5 {[%clk 0:00:36.3]} 39. h4
{[%clk 0:00:26.5]} 39... f6 {[%clk 0:00:35.5]} 40. Bb4 {[%clk 0:00:25.8]} 40...
Kf7 {[%clk 0:00:35.9]} 41. Bc5 {[%clk 0:00:25.6]} 41... Ke6 {[%clk 0:00:32.4]}
42. Bb4 {[%clk 0:00:25.4]} 42... Qf3+ {[%clk 0:00:26.4]} 43. Qxf3 {[%clk
0:00:24.7]} 43... exf3+ {[%clk 0:00:27.3]} 44. Kxf3 {[%clk 0:00:25.2]} 44...
Rxd6 {[%clk 0:00:25.5]} 0-1

[Event "Late-Titled-Tuesday-Blitz-May-07-2024"]
[Site "Chess.com"]
[Date "2024.05.07"]
[Round "10"]
[White "PawnEatingZombie"]
[Black "1g60-1"]
[Result "1/2-1/2"]
[WhiteElo "2272"]
[BlackElo "2419"]
[TimeControl "180+1"]
[EndTime "15:56:29 PDT"]
[Termination "Game drawn by repetition"]

1. e4 {[%clk 0:03:00.9]} 1... e6 {[%clk 0:02:58.9]} 2. d4 {[%clk 0:02:57.9]}
2... d5 {[%clk 0:02:58.9]} 3. exd5 {[%clk 0:02:58.7]} 3... exd5 {[%clk
0:02:59.1]} 4. Bf4 {[%clk 0:02:58.9]} 4... c6 {[%clk 0:02:52.9]} 5. Qd2 {[%clk
0:02:56.7]} 5... Nf6 {[%clk 0:02:52.4]} 6. Nc3 {[%clk 0:02:54.2]} 6... Bb4
{[%clk 0:02:51.9]} 7. f3 {[%clk 0:02:53.5]} 7... O-O {[%clk 0:02:50.8]} 8. O-O-O
{[%clk 0:02:51.8]} 8... Qa5 {[%clk 0:02:48.3]} 9. Nge2 {[%clk 0:02:45.1]} 9...
b5 {[%clk 0:02:36.4]} 10. g4 {[%clk 0:02:35.9]} 10... Nbd7 {[%clk 0:02:23.3]}
11. h4 {[%clk 0:02:34.1]} 11... Nb6 {[%clk 0:02:23]} 12. Qd3 {[%clk 0:02:08.4]}
12... Nc4 {[%clk 0:02:16.4]} 13. Kb1 {[%clk 0:01:48.7]} 13... Re8 {[%clk
0:02:07.5]} 14. Bc1 {[%clk 0:01:42.7]} 14... Bf8 {[%clk 0:02:00.4]} 15. Ng3
{[%clk 0:01:28.8]} 15... b4 {[%clk 0:01:56.8]} 16. Nce2 {[%clk 0:01:26.8]} 16...
Ba6 {[%clk 0:01:52.4]} 17. Qf5 {[%clk 0:01:00.7]} 17... Re7 {[%clk 0:00:49.4]}
18. g5 {[%clk 0:00:57.2]} 18... Nd7 {[%clk 0:00:49]} 19. h5 {[%clk 0:00:51.2]}
19... Rb8 {[%clk 0:00:42.6]} 20. g6 {[%clk 0:00:50.7]} 20... Nf6 {[%clk
0:00:34.5]} 21. gxh7+ {[%clk 0:00:41.8]} 21... Nxh7 {[%clk 0:00:34.7]} 22. Rg1
{[%clk 0:00:36.9]} 22... Kh8 {[%clk 0:00:20.6]} 23. Nf4 {[%clk 0:00:31.5]} 23...
Nd6 {[%clk 0:00:17.7]} 24. Qh3 {[%clk 0:00:21.4]} 24... Bxf1 {[%clk 0:00:17]}
25. Rdxf1 {[%clk 0:00:18.7]} 25... Nc4 {[%clk 0:00:16.7]} 26. Ng6+ {[%clk
0:00:13.3]} 26... Kg8 {[%clk 0:00:12.6]} 27. Nxe7+ {[%clk 0:00:13]} 27... Bxe7
{[%clk 0:00:13.5]} 28. Nf5 {[%clk 0:00:12.7]} 28... Bf6 {[%clk 0:00:12.7]} 29.
Nxg7 {[%clk 0:00:11.2]} 29... Na3+ {[%clk 0:00:10.9]} 30. Ka1 {[%clk 0:00:02.7]}
30... Nxc2+ {[%clk 0:00:11.1]} 31. Kb1 {[%clk 0:00:03.1]} 31... Na3+ {[%clk
0:00:08.7]} 32. Ka1 {[%clk 0:00:03.1]} 32... Nc2+ {[%clk 0:00:07.3]} 33. Kb1
{[%clk 0:00:03.6]} 33... Na3+ {[%clk 0:00:07.8]} 34. Ka1 {[%clk 0:00:03.7]}
34... Nc2+ {[%clk 0:00:08.7]} 1/2-1/2

[Event "Late-Titled-Tuesday-Blitz-May-07-2024"]
[Site "Chess.com"]
[Date "2024.05.07"]
[Round "10"]
[White "Akhayan"]
[Black "nitpicker"]
[Result "1-0"]
[WhiteElo "2427"]
[BlackElo "2283"]
[TimeControl "180+1"]
[EndTime "15:56:30 PDT"]
[Termination "Akhayan won on time"]

1. e4 {[%clk 0:03:00.9]} 1... c5 {[%clk 0:02:59.3]} 2. Nf3 {[%clk 0:02:59.2]}
2... Nc6 {[%clk 0:02:58.4]} 3. Nc3 {[%clk 0:02:58.9]} 3... d6 {[%clk 0:02:56.2]}
4. d4 {[%clk 0:02:57.8]} 4... cxd4 {[%clk 0:02:56.1]} 5. Nxd4 {[%clk 0:02:58.4]}
5... Nf6 {[%clk 0:02:56.6]} 6. Bc4 {[%clk 0:02:57.9]} 6... Qb6 {[%clk 0:02:56]}
7. Nxc6 {[%clk 0:02:57.1]} 7... bxc6 {[%clk 0:02:55.6]} 8. O-O {[%clk
0:02:57.5]} 8... e6 {[%clk 0:02:53.3]} 9. Bf4 {[%clk 0:02:53.4]} 9... Qxb2
{[%clk 0:02:11.3]} 10. Qd3 {[%clk 0:02:43]} 10... Qb8 {[%clk 0:02:07]} 11. Rab1
{[%clk 0:02:34.1]} 11... Qc7 {[%clk 0:02:06.3]} 12. Rfd1 {[%clk 0:02:19.4]}
12... e5 {[%clk 0:02:05.1]} 13. Bg5 {[%clk 0:02:12.6]} 13... Be7 {[%clk
0:02:00.3]} 14. Bxf6 {[%clk 0:02:10.7]} 14... gxf6 {[%clk 0:01:56.8]} 15. Qe2
{[%clk 0:01:28.2]} 15... O-O {[%clk 0:01:40]} 16. Rd3 {[%clk 0:01:24.6]} 16...
f5 {[%clk 0:01:34.2]} 17. Qh5 {[%clk 0:01:16]} 17... f4 {[%clk 0:01:23.2]} 18.
g4 {[%clk 0:01:03.7]} 18... fxg3 {[%clk 0:00:57.7]} 19. Rxg3+ {[%clk 0:01:02.6]}
19... Kh8 {[%clk 0:00:58.3]} 20. Qh6 {[%clk 0:00:43.9]} 20... Rg8 {[%clk
0:00:40.4]} 21. Rxg8+ {[%clk 0:00:43.1]} 21... Kxg8 {[%clk 0:00:40.4]} 22. Kh1
{[%clk 0:00:43.7]} 22... Bg4 {[%clk 0:00:19]} 23. Rg1 {[%clk 0:00:42.7]} 23...
Qd7 {[%clk 0:00:19.5]} 24. f3 {[%clk 0:00:30.1]} 24... Kh8 {[%clk 0:00:12.2]}
25. Rxg4 {[%clk 0:00:29.3]} 25... Rg8 {[%clk 0:00:12.1]} 26. Qh5 {[%clk
0:00:23.9]} 26... Rxg4 {[%clk 0:00:08.2]} 27. Qxg4 {[%clk 0:00:24]} 27... Qxg4
{[%clk 0:00:06.4]} 28. fxg4 {[%clk 0:00:23.8]} 28... Kg7 {[%clk 0:00:07.3]} 29.
Kg2 {[%clk 0:00:23.5]} 29... Bg5 {[%clk 0:00:06.8]} 30. Kf3 {[%clk 0:00:23.7]}
30... Bf4 {[%clk 0:00:07.1]} 31. h4 {[%clk 0:00:22.7]} 31... h6 {[%clk
0:00:05.9]} 32. Ne2 {[%clk 0:00:22.5]} 32... Bd2 {[%clk 0:00:05.1]} 33. Ba6
{[%clk 0:00:22.3]} 33... d5 {[%clk 0:00:03.4]} 34. Bb7 {[%clk 0:00:21]} 34...
dxe4+ {[%clk 0:00:02.1]} 35. Kxe4 {[%clk 0:00:20.9]} 35... Kf6 {[%clk
0:00:01.7]} 36. Bxc6 {[%clk 0:00:20]} 36... Be1 {[%clk 0:00:00.3]} 37. h5 {[%clk
0:00:19.1]} 1-0

[Event "Late-Titled-Tuesday-Blitz-May-07-2024"]
[Site "Chess.com"]
[Date "2024.05.07"]
[Round "10"]
[White "Msb2"]
[Black "FairChess_on_YouTube"]
[Result "1-0"]
[WhiteElo "3052"]
[BlackElo "3071"]
[TimeControl "180+1"]
[EndTime "15:56:31 PDT"]
[Termination "Msb2 won on time"]

1. d4 {[%clk 0:03:00.9]} 1... Nf6 {[%clk 0:03:00.3]} 2. c4 {[%clk 0:03:01]} 2...
d6 {[%clk 0:03:00.2]} 3. Nf3 {[%clk 0:03:01.1]} 3... g6 {[%clk 0:03:00.4]} 4.
Nc3 {[%clk 0:03:01.6]} 4... Bf5 {[%clk 0:03:00]} 5. d5 {[%clk 0:03:01.7]} 5...
Bg7 {[%clk 0:02:58.6]} 6. Nd4 {[%clk 0:03:02.3]} 6... Bd7 {[%clk 0:02:58.6]} 7.
e4 {[%clk 0:03:03]} 7... c5 {[%clk 0:02:55.4]} 8. Nc2 {[%clk 0:03:03.1]} 8...
O-O {[%clk 0:02:52.2]} 9. Be2 {[%clk 0:03:03.3]} 9... e6 {[%clk 0:02:52.2]} 10.
O-O {[%clk 0:02:58.4]} 10... exd5 {[%clk 0:02:52.1]} 11. exd5 {[%clk 0:02:58.2]}
11... Re8 {[%clk 0:02:49.6]} 12. Bf4 {[%clk 0:02:49.9]} 12... Na6 {[%clk
0:02:12]} 13. Rb1 {[%clk 0:02:42.3]} 13... Bf5 {[%clk 0:01:27.9]} 14. Bd3 {[%clk
0:02:29.5]} 14... Nh5 {[%clk 0:01:17.9]} 15. Be3 {[%clk 0:02:23.2]} 15... Bxd3
{[%clk 0:01:14.9]} 16. Qxd3 {[%clk 0:02:24.1]} 16... Nb4 {[%clk 0:01:08.3]} 17.
Nxb4 {[%clk 0:02:17.9]} 17... cxb4 {[%clk 0:01:09.2]} 18. Nb5 {[%clk 0:02:18.6]}
18... a6 {[%clk 0:01:05.8]} 19. Nd4 {[%clk 0:02:18.9]} 19... Qh4 {[%clk
0:01:03.8]} 20. g3 {[%clk 0:02:11.5]} 20... Qh3 {[%clk 0:00:58.7]} 21. a3 {[%clk
0:02:00.6]} 21... Nf6 {[%clk 0:00:54.9]} 22. Nf3 {[%clk 0:01:45.6]} 22... Ng4
{[%clk 0:00:50.6]} 23. Bf4 {[%clk 0:01:46]} 23... Be5 {[%clk 0:00:43.9]} 24. Bd2
{[%clk 0:01:32.3]} 24... Bf6 {[%clk 0:00:22.6]} 25. Rfe1 {[%clk 0:01:27]} 25...
b3 {[%clk 0:00:15.9]} 26. Re4 {[%clk 0:01:01.6]} 26... Bg7 {[%clk 0:00:10]} 27.
Rbe1 {[%clk 0:00:47.4]} 27... Rxe4 {[%clk 0:00:09.3]} 28. Rxe4 {[%clk
0:00:48.3]} 28... Bxb2 {[%clk 0:00:05]} 29. Qxb3 {[%clk 0:00:48.5]} 29... f5
{[%clk 0:00:05.4]} 30. Qxb7 {[%clk 0:00:34.9]} 30... fxe4 {[%clk 0:00:03.1]} 31.
Qxa8+ {[%clk 0:00:35]} 31... Kg7 {[%clk 0:00:03.6]} 32. Qb7+ {[%clk 0:00:35.1]}
32... Kg8 {[%clk 0:00:02.8]} 33. Qb8+ {[%clk 0:00:35.3]} 33... Kg7 {[%clk
0:00:01.5]} 34. Qxb2+ {[%clk 0:00:35.5]} 34... Kg8 {[%clk 0:00:01.5]} 35. Qb8+
{[%clk 0:00:35.8]} 35... Kg7 {[%clk 0:00:01.4]} 36. Qc7+ {[%clk 0:00:33.6]}
36... Kg8 {[%clk 0:00:01.5]} 37. Qd8+ {[%clk 0:00:33.1]} 37... Kg7 {[%clk
0:00:01.8]} 38. Bc3+ {[%clk 0:00:26.7]} 1-0